bitfinex-derivatives/quotes_SOLF0:USTF0_20250211
["timestamp","ask_amount","ask_price","bid_price","bid_amount"]
[1739250721418,5.79093489,204.53,204.51,4.8889]
[1739250722917,5.79093489,204.53,204.5,0.03512313]
[1739250723118,5.79093489,204.53,204.5,4.92412313]
[1739250723316,5.79093489,204.53,204.5,0.03512313]
[1739250723519,5.79093489,204.53,204.51,4.8889]
[1739250723821,5.79093489,204.53,204.5,0.03512313]
[1739250724717,5.79093489,204.53,204.51,4.889]
[1739250724922,0.03369768,204.54,204.5,0.03512313]
[1739250725624,0.03369768,204.54,204.53,4.8885]
[1739250730323,5.79093489,204.57,204.56,4.8878]
[1739250730524,5.79093489,204.57,204.51,5.79093489]
[1739250730719,5.79093489,204.57,204.54,4.888]
[1739250731918,5.79093489,204.57,204.53,0.0356438]
[1739250732124,5.79093489,204.59,204.53,0.0356438]
[1739250732519,5.79093489,204.57,204.53,0.0356438]
[1739250732724,5.79093489,204.55,204.52,1.5499]
[1739250732925,5.79093489,204.55,204.53,0.03168279]
[1739250733226,5.79093489,204.57,204.55,4.8878]
[1739250733825,5.79093489,204.57,204.54,0.03462798]
[1739250734023,5.79093489,204.57,204.56,4.8878]
[1739250734827,5.79093489,204.57,204.54,0.03462798]
[1739250734828,5.79093489,204.57,204.55,4.888]
[1739250735124,5.79093489,204.57,204.54,0.03462798]
[1739250735727,5.79093489,204.57,204.55,4.888]
[1739250737230,5.79093489,204.57,204.54,0.03462798]
[1739250738628,5.79093489,204.59,204.54,0.03462798]
[1739250738828,5.79093489,204.59,204.51,5.79093489]
[1739250739029,5.79093489,204.59,204.54,0.03403438]
[1739250739623,5.79093489,204.59,204.56,4.8876]
[1739250742532,5.79093489,204.59,204.54,0.03403438]
[1739250742723,5.79093489,204.59,204.57,4.8875]
[1739250743828,5.79093489,204.59,204.56,4.8877]
[1739250744033,5.79093489,204.59,204.54,0.03403438]
[1739250744532,5.79093489,204.59,204.56,4.8876]
[1739250744731,5.79093489,204.59,204.54,0.03403438]
[1739250745235,5.79093489,204.57,204.54,0.03403438]
[1739250745535,5.79093489,204.57,204.56,4.8878]
[1739250746635,5.79093489,204.57,204.54,0.03403438]
[1739250746837,5.79093489,204.55,204.54,0.03403438]
[1739250747134,5.79093489,204.55,204.51,4.8889]
[1739250747334,5.79093489,204.55,204.52,0.0365622]
[1739250747633,5.1636,204.68,204.52,0.0365622]
[1739250747634,5.79093489,204.53,204.52,0.0365622]
[1739250747833,5.79093489,204.53,204.46,1.5421]
[1739250748030,5.79093489,204.53,204.5,0.03350566]
[1739250748332,10.67943489,204.53,204.5,0.03350566]
[1739250748633,5.79093489,204.53,204.5,0.03350566]
[1739250749332,5.79093489,204.55,204.5,0.03350566]
[1739250749534,5.79093489,204.55,204.47,5.79093489]
[1739250749829,5.79093489,204.55,204.52,4.8885]
[1739250750129,5.79093489,204.64,204.54,5.79093489]
[1739250750529,5.79093489,204.62,204.57,0.03745505]
[1739250751332,5.79093489,204.62,204.6,4.8866]
[1739250752530,5.79093489,204.62,204.61,4.8866]
[1739250752734,5.79093489,204.64,204.57,0.03745505]
[1739250753039,5.79093489,204.64,204.59,4.887]
[1739250753333,5.79093489,204.64,204.57,0.03745505]
[1739250753726,5.79093489,204.64,204.61,4.8863]
[1739250753925,5.79093489,204.64,204.57,0.03745505]
[1739250754939,5.79093489,204.69,204.61,5.79093489]
[1739250755440,5.79093489,204.69,204.65,4.8855]
[1739250755634,5.79093489,204.67,204.63,0.03325324]
[1739250755836,5.79093489,204.65,204.63,0.03325324]
[1739250769444,5.79093489,204.65,204.62,4.8862]
[1739250769445,5.79093489,204.65,204.55,5.79093489]
[1739250769644,5.79093489,204.61,204.53,5.79093489]
[1739250770043,4.8866,204.61,204.55,5.79093489]
[1739250770641,3.121e-05,204.6,204.59,5.79093489]
[1739250770841,5.79093489,204.7,204.59,5.79093489]
[1739250771145,5.79093489,204.7,204.61,5.79093489]
[1739250771445,10.67533489,204.7,204.63,4.886]
[1739250771841,10.67533489,204.7,204.64,0.03434657]
[1739250772045,5.79093489,204.66,204.64,0.03434657]
[1739250772348,3.58,204.76,204.53,5.79093489]
[1739250772349,5.79093489,204.63,204.53,5.79093489]
[1739250772543,5.79093489,204.63,204.58,4.8872]
[1739250773444,5.82314905,204.63,204.58,4.92427482]
[1739250773644,0.03221416,204.63,204.58,0.03707482]
[1739250774038,0.03221416,204.63,204.6,4.8867]
[1739250774448,0.03221416,204.63,204.58,0.03707482]
[1739250774946,5.82314905,204.63,204.58,0.03707482]
[1739250775840,10.70924905,204.63,204.58,0.03707482]
[1739250776244,5.82314905,204.63,204.58,0.03707482]
[1739250776444,5.82314905,204.63,204.59,4.887]
[1739250777453,10.70934905,204.63,204.58,4.92437482]
[1739250778141,5.82314905,204.63,204.59,4.887]
[1739250779548,5.82314905,204.63,204.58,0.03707482]
[1739250780053,5.82314905,204.63,204.61,4.8864]
[1739250781352,5.82314905,204.63,204.58,0.03707482]
[1739250781744,5.82314905,204.63,204.6,4.8866]
[1739250782053,5.82314905,204.63,204.58,0.03707482]
[1739250782746,0.03221416,204.63,204.58,5.82800971]
[1739250782954,0.03221416,204.63,204.62,4.8863]
[1739250788051,5.82314905,204.63,204.58,0.03707482]
[1739250788355,5.79093489,204.62,204.58,0.03707482]
[1739250788856,0.03221416,204.63,204.6,5.79093489]
[1739250789057,0.03221416,204.63,204.62,4.8863]
[1739250789253,0.03221416,204.63,204.58,5.82800971]
[1739250790155,0.03221416,204.63,204.61,4.8863]
[1739250790758,0.03221416,204.63,204.58,5.82800971]
[1739250790960,0.03221416,204.63,204.62,4.8863]
[1739250798257,0.03221416,204.63,204.6,4.8866]
[1739250798464,5.82314905,204.63,204.58,0.03707482]
[1739250799066,5.82314905,204.63,204.6,4.8866]
[1739250800666,5.82314905,204.63,204.59,4.887]
[1739250800865,5.82314905,204.63,204.58,0.03707482]
[1739250801763,4.8865,204.62,204.58,0.03707482]
[1739250802064,5.82314905,204.63,204.58,0.03707482]
[1739250802466,0.03221416,204.63,204.6,5.79093489]
[1739250802668,1.416e-05,204.63,204.62,5.79093489]
[1739250802869,1.416e-05,204.63,204.58,5.82800971]
[1739250804672,1.416e-05,204.63,204.62,4.8863]
[1739250806771,1.416e-05,204.63,204.61,4.8865]
[1739250807964,1.416e-05,204.63,204.58,5.82800971]
[1739250810082,1.416e-05,204.63,204.62,4.8863]
[1739250812877,1.416e-05,204.63,204.62,10.67723489]
[1739250813077,1.416e-05,204.63,204.61,4.8866]
[1739250813382,1.416e-05,204.63,204.59,1.4566]
[1739250813880,1.416e-05,204.63,204.6,4.8868]
[1739250814181,1.416e-05,204.63,204.58,0.03707482]
[1739250815887,1.416e-05,204.63,204.6,4.8866]
[1739250816185,1.416e-05,204.63,204.59,26.37490909]
[1739250816881,1.416e-05,204.63,204.6,4.8868]
[1739250817081,1.416e-05,204.63,204.59,26.37490909]
[1739250817789,5.79094905,204.63,204.59,26.37490909]
[1739250818487,4.8865,204.62,204.59,26.37490909]
[1739250818688,1.416e-05,204.63,204.59,5.79093489]
[1739250818986,1.416e-05,204.63,204.62,4.8863]
[1739250840298,1.416e-05,204.63,204.58,0.03707482]
[1739250842000,1.416e-05,204.63,204.59,4.887]
[1739250842202,5.79094905,204.63,204.58,0.03707482]
[1739250842405,5.79093489,204.59,204.58,0.03707482]
[1739250844502,5.79093489,204.59,204.52,31.26340909]
[1739250844701,5.79093489,204.57,204.52,26.37490909]
[1739250845700,5.82570491,204.57,204.52,0.03630279]
[1739250846004,0.03477002,204.57,204.56,4.8878]
[1739250847006,0.03477002,204.57,204.55,4.888]
[1739250847503,0.03477002,204.57,204.56,4.8878]
[1739250849002,0.03477002,204.57,204.54,10.67893489]
[1739250849204,0.03477002,204.57,204.54,5.79093489]
[1739250849404,0.03477002,204.57,204.52,5.82723768]
[1739250849705,0.03477002,204.57,204.52,10.71593768]
[1739250849999,4.8883,204.54,204.52,0.03630279]
[1739250850198,5.79093489,204.53,204.52,0.03630279]
[1739250850899,10.67943489,204.53,204.52,0.03630279]
[1739250852108,5.79093489,204.53,204.52,0.03630279]
[1739250852903,5.79093489,204.55,204.52,0.03630279]
[1739250853401,5.79093489,204.55,204.52,4.92500279]
[1739250853598,5.82570491,204.57,204.52,0.03630279]
[1739250855706,5.82570491,204.57,204.52,4.92480279]
[1739250855906,5.82570491,204.57,204.52,0.03630279]
[1739250856508,0.03477002,204.57,204.52,0.03630279]
[1739250857101,0.03477002,204.57,204.53,4.8884]
[1739250857305,0.03477002,204.57,204.52,5.82723768]
[1739250858206,0.03477002,204.57,204.55,4.8878]
[1739250858409,0.03477002,204.57,204.52,5.82723768]
[1739250858808,0.03477002,204.57,204.56,4.8878]
[1739250860615,7.002e-05,204.57,204.56,4.8878]
[1739250863714,7.002e-05,204.57,204.56,10.67873489]
[1739250867111,5.79093489,204.75,204.56,5.79093489]
[1739250867414,5.79093489,204.71,204.65,5.79093489]
[1739250867618,5.79093489,204.69,204.61,5.79093489]
[1739250867817,5.79093489,204.69,204.62,4.8861]
[1739250868315,3.58,204.82,204.55,1.5536]
[1739250868316,5.79093489,204.67,204.63,0.03435537]
[1739250868518,5.79093489,204.65,204.6,4.8868]
[1739250868714,5.79093489,204.65,204.63,0.03634631]
[1739250870115,5.79093489,204.65,204.57,10.67823489]
[1739250870316,5.79093489,204.63,204.55,5.79093489]
[1739250871217,5.79093489,204.63,204.57,0.03176172]
[1739250871419,0.03366199,204.61,204.57,0.03176172]
[1739250872022,0.03366199,204.61,204.58,4.8872]
[1739250872715,0.03366199,204.61,204.59,4.887]
[1739250874017,0.03366199,204.61,204.6,4.8868]
[1739250876117,0.03366199,204.61,204.57,0.03176172]
[1739250876319,0.03366199,204.61,204.58,4.8871]
[1739250876714,5.79093489,204.59,204.57,0.03176172]
[1739250876918,10.67823489,204.59,204.49,6.59372727]
[1739250877222,5.79093489,204.53,204.49,11.48302727]
[1739250877422,5.79093489,204.53,204.49,6.59372727]
[1739250877822,5.79093489,204.53,204.5,6.59372727]
[1739250880324,0.03422266,204.54,204.53,4.8885]
[1739250884221,5.79093489,204.64,204.55,4.8879]
[1739250884421,5.79093489,204.64,204.58,5.79093489]
[1739250885321,5.79093489,204.64,204.63,4.8861]
[1739250885923,5.82806351,204.66,204.63,4.8861]
[1739250886125,5.82806351,204.66,204.59,0.03662047]
[1739250887526,5.82806351,204.66,204.64,4.8858]
[1739250888025,5.82806351,204.66,204.63,4.886]
[1739250889621,5.82806351,204.66,204.64,4.8858]
[1739250890227,5.82806351,204.66,204.63,4.8861]
[1739250890622,5.82806351,204.66,204.59,0.03662047]
[1739250890823,5.79093489,204.62,204.59,4.92362047]
[1739250891127,5.79093489,204.62,204.59,0.03662047]
[1739250893928,5.79093489,204.62,204.59,4.92362047]
[1739250894933,5.79093489,204.64,204.6,4.8867]
[1739250895731,0.03712862,204.66,204.6,5.79093489]
[1739250896132,5.82806351,204.66,204.61,4.8865]
[1739250896924,5.79093489,204.64,204.59,4.92342047]
[1739250897230,5.79093489,204.64,204.59,0.03662047]
[1739250897430,5.79093489,204.62,204.59,0.03662047]
[1739250899835,5.79093489,204.62,204.59,4.92362047]
[1739250902843,5.79093489,204.64,204.59,0.03662047]
[1739250903039,5.82806351,204.66,204.59,0.03662047]
[1739250903743,5.82806351,204.66,204.61,4.8865]
[1739250904037,5.82806351,204.66,204.59,0.03662047]
[1739250904440,5.79093489,204.64,204.6,4.8866]
[1739250904846,0.03712862,204.66,204.59,0.03662047]
[1739250904847,5.82806351,204.66,204.59,0.03662047]
[1739250905543,5.82806351,204.66,204.61,4.8865]
[1739250905843,5.82806351,204.66,204.59,0.03662047]
[1739250906646,5.82806351,204.66,204.62,4.8862]
[1739250907742,5.82806351,204.66,204.63,4.8859]
[1739250907948,5.82806351,204.66,204.59,0.03662047]
[1739250908248,5.82806351,204.66,204.62,4.8861]
[1739250909349,5.82806351,204.66,204.59,0.03662047]
[1739250909948,5.82806351,204.66,204.63,4.8861]
[1739250910346,0.03712862,204.66,204.61,5.79093489]
[1739250910551,0.03712862,204.66,204.59,5.82755536]
[1739250911250,5.79093489,204.65,204.59,0.03662047]
[1739250911943,5.79093489,204.65,204.63,4.8861]
[1739250912648,0.03712862,204.66,204.63,4.8861]
[1739250912949,0.03712862,204.66,204.59,5.82755536]
[1739250915153,0.03712862,204.66,204.65,4.8856]
[1739250915353,0.03712862,204.66,204.59,5.79093489]
[1739250915551,0.03712862,204.66,204.64,4.8858]
[1739250916056,0.03712862,204.66,204.63,0.03746577]
[1739250916357,0.03712862,204.66,204.64,4.8858]
[1739250916656,0.03712862,204.66,204.63,0.03746577]
[1739250916855,0.03712862,204.66,204.65,4.8856]
[1739250919363,0.03712862,204.66,204.63,0.03746577]
[1739250919661,0.03712862,204.66,204.64,4.8858]
[1739250920769,5.79093489,204.65,204.63,0.03746577]
[1739250921264,0.03712862,204.66,204.65,4.8856]
[1739250929269,0.03712862,204.66,204.63,0.03746577]
[1739250930272,0.03712862,204.66,204.65,4.8856]
[1739250931869,0.03712862,204.66,204.63,0.03746577]
[1739250932073,5.79093489,204.64,204.63,0.03746577]
[1739250932372,5.79093489,204.64,204.57,6.59372727]
[1739250932573,5.79093489,204.64,204.57,11.48122727]
[1739250933373,5.79093489,204.64,204.58,0.03172967]
[1739250933570,5.79093489,204.62,204.58,0.03172967]
[1739250934372,5.79093489,204.62,204.58,4.91882967]
[1739250935472,5.79093489,204.64,204.61,4.8866]
[1739250935872,5.79093489,204.64,204.58,0.03172967]
[1739250936073,5.79093489,204.64,204.59,4.8869]
[1739250936973,10.67753489,204.62,204.58,0.03172967]
[1739250937485,5.79093489,204.62,204.58,0.03172967]
[1739250937667,5.79093489,204.6,204.58,0.03172967]
[1739250938373,0.03161482,204.61,204.58,0.03172967]
[1739250942382,0.03161482,204.61,204.58,5.82266456]
[1739250942878,5.79093489,204.67,204.62,4.8862]
[1739250943679,5.79093489,204.67,204.59,3.0597]
[1739250943984,5.8266616,204.67,204.63,4.886]
[1739250945187,5.8266616,204.67,204.64,4.8858]
[1739250946486,0.03572671,204.67,204.62,5.82345423]
[1739250946980,0.03572671,204.67,204.64,4.8857]
[1739250947583,0.03572671,204.67,204.66,4.8854]
[1739250959701,191.0,204.78,204.66,5.79093489]
[1739250960000,5.79093489,204.74,204.68,5.79093489]
[1739250960196,5.79093489,204.7,204.65,4.8854]
[1739250960400,5.79093489,204.7,204.62,5.79093489]
[1739250960698,5.79093489,204.76,204.7,4.8842]
[1739250960898,5.79093489,204.78,204.72,5.79093489]
[1739250961299,5.79093489,204.8,204.74,5.79093489]
[1739250961497,8.83483489,204.84,204.78,4.8824]
[1739250961702,3.0439,204.84,204.78,5.79093489]
[1739250961896,9.45028566,204.87,204.8,5.79093489]
[1739250962201,242.9886069,204.88,204.82,5.79093489]
[1739250962503,196.79093489,204.88,204.82,5.79093489]
[1739250963405,7.34493489,204.9,204.82,5.79093489]
[1739250963902,5.79093489,204.9,204.82,5.79093489]
[1739250964203,5.79093489,204.88,204.86,4.8805]
[1739250964595,5.79093489,204.88,204.85,0.03760978]
[1739250964800,5.79093489,204.86,204.77,5.79093489]
[1739250965101,5.79093489,204.83,204.77,5.79093489]
[1739250965402,5.79093489,204.85,204.79,0.03379269]
[1739250966099,5.79093489,204.85,204.8,4.882]
[1739250966798,5.79093489,204.85,204.79,5.82472758]
[1739250967504,5.79093489,204.85,204.79,0.03379269]
[1739250968204,5.79093489,204.85,204.79,4.91609269]
[1739250970801,5.79093489,204.81,204.79,0.03379269]
[1739250971002,5.79093489,204.81,204.71,1.5163]
[1739250971306,5.79093489,204.74,204.68,15.44806216]
[1739250971804,5.79093489,204.76,204.69,0.03139622]
[1739250972006,5.79093489,204.76,204.72,4.8837]
[1739250972203,5.79093489,204.74,204.7,0.03721548]
[1739250972401,5.79093489,204.72,204.7,0.03721548]
[1739250972704,5.79093489,204.72,204.69,0.03478721]
[1739250973296,5.79093489,204.7,204.69,0.03478721]
[1739250973501,5.79093489,204.7,204.68,3.0634]
[1739250974606,5.79093489,204.72,204.68,3.0634]
[1739250975003,5.79093489,204.72,204.68,3.10043821]
[1739250976510,5.79093489,204.72,204.69,4.8846]
[1739250977314,5.79093489,204.72,204.68,3.10043821]
[1739250977608,5.79093489,204.72,204.68,7.98533821]
[1739250978008,5.79093489,204.7,204.68,0.03703821]
[1739250978203,5.79093489,204.7,204.6,5.79093489]
[1739250978409,5.79093489,204.67,204.6,5.79093489]
[1739250978609,5.79093489,204.67,204.63,0.03292088]
[1739250979518,5.79093489,204.69,204.65,4.8856]
[1739250980010,5.79093489,204.69,204.66,4.8853]
[1739250980411,5.79093489,204.69,204.65,0.0343542]
[1739250981216,5.79093489,204.71,204.68,4.8849]
[1739250982317,5.79093489,204.71,204.67,0.03501493]
[1739250982512,5.79093489,204.73,204.7,4.8842]
[1739250983618,5.79093489,204.73,204.69,0.03749576]
[1739250983817,5.79093489,204.71,204.69,0.03749576]
[1739250984112,5.79093489,204.71,204.62,5.79093489]
[1739250984317,4.8847,204.69,204.68,0.03545276]
[1739250984519,14.67,204.81,204.59,2.9559]
[1739250984720,5.79093489,204.61,204.59,2.9559]
[1739250985420,191.0,204.79,204.59,2.9559]
[1739250985620,0.03627256,204.62,204.59,2.9559]
[1739250985819,0.03627256,204.62,204.58,0.03361941]
[1739250985820,5.79093489,204.6,204.55,6.59372727]
[1739250986020,5.79093489,204.56,204.55,6.59372727]
[1739250986217,5.79093489,204.56,204.55,6.62689487]
[1739250987022,5.79093489,204.56,204.55,0.0331676]
[1739250987722,9.0681436,204.58,204.55,0.0331676]
[1739250988719,13.9554436,204.58,204.55,0.0331676]
[1739250988925,9.0681436,204.58,204.55,0.0331676]
[1739250989224,9.0681436,204.58,204.5,6.59372727]
[1739250989421,9.0348288,204.54,204.5,6.59372727]
[1739250990028,9.0348288,204.54,204.43,4.5909]
[1739250990326,9.0348288,204.54,204.46,0.03232479]
[1739250990523,0.03512181,204.51,204.46,0.03232479]
[1739250990722,0.03512181,204.51,204.47,4.8898]
[1739250990917,0.03512181,204.51,204.46,0.03232479]
[1739250991518,0.03512181,204.51,204.47,4.8898]
[1739250992025,0.03512181,204.51,204.48,4.8896]
[1739250992329,0.03512181,204.51,204.46,0.03232479]
[1739250992825,9.06995061,204.51,204.46,0.03232479]
[1739250993026,9.0348288,204.48,204.46,0.03232479]
[1739250993925,4.8899,204.47,204.46,0.03232479]
[1739250994127,9.0348288,204.48,204.46,0.03232479]
[1739250995125,13.9245288,204.48,204.41,4.8911]
[1739250995624,9.0348288,204.45,204.42,4.8911]
[1739250996726,0.03341021,204.46,204.45,4.8904]
[1739250999834,0.03341021,204.46,204.41,4.92310882]
[1739251000034,9.0348288,204.45,204.41,0.03180882]
[1739251000532,9.0348288,204.42,204.41,0.03180882]
[1739251001232,9.0348288,204.42,204.31,3.0107]
[1739251001624,9.0348288,204.39,204.31,3.0107]
[1739251002029,9.0348288,204.36,204.29,4.894]
[1739251002326,9.0348288,204.36,204.23,140.9093743]
[1739251002327,9.0348288,204.36,204.25,1.5143]
[1739251002533,0.03455252,204.35,204.3,0.03267996]
[1739251002732,9.0348288,204.33,204.3,0.03267996]
[1739251004037,9.0348288,204.33,204.2,1.5244]
[1739251004236,9.0348288,204.27,204.2,1.5244]
[1739251005434,0.03560382,204.26,204.21,0.03280895]
[1739251006233,9.0348288,204.24,204.21,0.03280895]
[1739251009534,9.0348288,204.24,204.21,4.92890895]
[1739251009730,9.0348288,204.24,204.21,0.03280895]
[1739251010534,0.03560382,204.26,204.21,0.03280895]
[1739251011738,0.03560382,204.26,204.25,4.8952]
[1739251012441,3.82e-06,204.26,204.25,4.8952]
[1739251014736,9.0348288,204.29,204.26,4.8949]
[1739251015539,9.0348288,204.29,204.22,1.5723]
[1739251015842,0.03606941,204.28,204.23,0.0356486]
[1739251016043,0.03606941,204.28,204.25,4.8949]
[1739251016940,0.03606941,204.28,204.23,0.0356486]
[1739251017136,9.0348288,204.26,204.23,0.0356486]
[1739251018243,9.0348288,204.26,204.23,4.9312486]
[1739251018643,0.03606941,204.28,204.23,0.0356486]
[1739251019038,0.03606941,204.28,204.25,4.8952]
[1739251019235,0.03606941,204.28,204.23,0.0356486]
[1739251021146,9.0348288,204.26,204.23,0.0356486]
[1739251021446,4.8955,204.24,204.16,2.9278]
[1739251021646,9.0348288,204.27,204.09,19.66974033]
[1739251021647,9.0348288,204.21,204.09,19.66974033]
[1739251021844,9.0348288,204.15,204.1,9.67558011]
[1739251022044,9.0348288,204.15,204.1,6.55658011]
[1739251022441,9.0348288,204.15,204.14,26.22632044]
[1739251022640,9.06735047,204.15,204.13,52.45264089]
[1739251022844,9.06735047,204.15,204.11,78.67896133]
[1739251023046,9.0348288,204.12,204.11,33.94467733]
[1739251023241,9.0348288,204.12,204.11,26.84187733]
[1739251023451,9.0348288,204.12,204.11,5.81727163]
[1739251023646,14.5256312,204.12,204.1,115.94396184]
[1739251023851,14.5256312,204.12,204.1,81.7234903]
[1739251024046,4.8985,204.11,204.1,81.7234903]
[1739251024248,4.8985,204.11,204.1,9.419e-05]
[1739251024462,191.0,204.1,203.99,35.36858262]
[1739251025248,0.03252167,204.15,203.99,35.36858262]
[1739251025453,0.03252167,204.15,204.0,1.4407]
[1739251025653,0.03252167,204.15,204.09,0.03573229]
[1739251026955,14.5256312,204.24,204.09,1.47643229]
[1739251027352,4.8957,204.23,204.12,4.8981]
[1739251027554,4.8957,204.23,204.09,1.4407]
[1739251027555,80.24001751,204.15,204.09,1.4407]
[1739251027953,80.24001751,204.15,204.14,4.8977]
[1739251028161,77.83841751,204.15,204.14,4.8977]
[1739251028456,0.03250003,204.14,204.1,0.0321508]
[1739251028859,77.83841751,204.15,204.1,0.0321508]
[1739251029054,68.23021751,204.15,204.1,0.0321508]
[1739251029459,6.28e-05,204.13,204.11,4.8985]
[1739251030465,0.03531537,204.14,204.11,4.8985]
[1739251030757,0.03531537,204.14,204.1,0.0321508]
[1739251035460,28.2295018,204.27,204.13,14.5256312]
[1739251035765,28.2295018,204.27,204.14,1.467]
[1739251036561,28.2295018,204.27,204.17,4.8969]
[1739251036863,0.03749198,204.23,204.18,0.03467872]
[1739251037162,28.2295018,204.27,204.22,4.8957]
[1739251037962,28.2295018,204.27,204.21,4.8961]
[1739251038366,0.03603217,204.26,204.22,0.03684929]
[1739251040771,0.03603217,204.26,204.22,4.93254929]
[1739251040972,3.217e-05,204.26,204.22,0.03684929]
[1739251041265,1.5825,204.35,204.22,0.03684929]
[1739251041469,1.5825,204.35,204.29,4.8942]
[1739251041672,1.5825,204.35,204.23,1.5929]
[1739251041873,15.9823312,204.43,204.25,14.5256312]
[1739251042163,1.5591,204.42,204.25,14.5256312]
[1739251042466,0.03420475,204.34,204.29,0.03741246]
[1739251044971,14.5256312,204.31,204.29,0.03741246]
[1739251045460,4.8943,204.29,204.18,1.483]
[1739251045664,14.5256312,204.31,204.14,1.467]
[1739251045861,4.8952,204.26,204.18,4.8967]
[1739251046062,14.5256312,204.31,204.14,1.467]
[1739251046470,4.93182818,204.25,204.2,0.03751411]
[1739251047862,0.03652818,204.25,204.2,0.03751411]
[1739251049169,0.03652818,204.25,204.21,4.8961]
[1739251050167,0.03652818,204.25,204.24,4.8954]
[1739251052372,4.893,204.35,204.28,4.8943]
[1739251052571,55.99668389,204.44,204.21,16.0821312]
[1739251052572,3.0345,204.38,204.21,16.0821312]
[1739251052871,3.0345,204.38,204.25,14.5256312]
[1739251053071,4.8925,204.37,204.25,14.5256312]
[1739251053674,0.03303289,204.33,204.29,0.03411077]
[1739251055876,0.03303289,204.33,204.29,4.92831077]
[1739251056172,0.03303289,204.33,204.29,0.03411077]
[1739251057173,4.894,204.3,204.29,0.03411077]
[1739251058878,4.8944,204.29,204.18,1.4933]
[1739251059172,1.5934,204.32,204.18,1.4933]
[1739251059375,14.5256312,204.31,204.18,1.4933]
[1739251059767,14.5256312,204.31,204.21,4.8961]
[1739251059768,4.8945,204.28,204.21,4.8961]
[1739251059966,4.8945,204.28,204.18,1.4933]
[1739251059967,0.03411587,204.27,204.22,0.03395428]
[1739251060375,0.03411587,204.27,204.22,4.92985428]
[1739251060572,0.03411587,204.27,204.22,0.03395428]
[1739251061075,0.03411587,204.27,204.26,4.8949]
[1739251061374,0.03411587,204.27,204.22,0.03395428]
[1739251061773,0.03411587,204.27,204.23,4.8955]
[1739251062074,0.03411587,204.27,204.22,0.03395428]
[1739251062768,0.03411587,204.27,204.25,4.8949]
[1739251063272,0.03411587,204.27,204.26,4.8949]
[1739251066367,1.587e-05,204.27,204.26,4.8949]
[1739251067967,3.0345,204.38,204.25,14.5256312]
[1739251068573,3.0345,204.38,204.32,4.8933]
[1739251068777,3.0345,204.38,204.25,14.5256312]
[1739251069172,0.03489463,204.34,204.29,0.03682842]
[1739251070075,2.9919,204.43,204.29,14.56245962]
[1739251070270,2.9919,204.43,204.36,4.8925]
[1739251070975,2.9919,204.43,204.29,14.5256312]
[1739251071175,4.8912,204.42,204.34,4.8928]
[1739251071377,4.8912,204.42,204.34,4.92735958]
[1739251071573,2.9919,204.43,204.34,0.03455958]
[1739251071773,2.9919,204.43,204.35,4.8928]
[1739251072174,4.8911,204.42,204.34,4.92755958]
[1739251072571,4.8911,204.42,204.34,0.03455958]
[1739251072871,7.8828,204.43,204.34,4.92745958]
[1739251073072,2.9919,204.43,204.34,0.03455958]
[1739251075382,4.8925,204.37,204.34,0.03455958]
[1739251075582,2.9919,204.43,204.34,0.03455958]
[1739251075782,4.8919,204.39,204.34,0.03455958]
[1739251076179,2.9919,204.43,204.34,0.03455958]
[1739251076581,4.8923,204.37,204.34,0.03455958]
[1739251078085,4.8926,204.36,204.34,0.03455958]
[1739251078681,2.9919,204.43,204.34,0.03455958]
[1739251079185,4.8915,204.41,204.34,0.03455958]
[1739251079383,2.9919,204.43,204.34,0.03455958]
[1739251079782,205.5256312,204.46,204.34,0.03455958]
[1739251079977,191.0,204.46,204.34,0.03455958]
[1739251080283,14.5256312,204.43,204.34,0.03455958]
[1739251080885,4.8918,204.4,204.34,0.03455958]
[1739251081086,14.5256312,204.43,204.34,0.03455958]
[1739251081683,4.8916,204.4,204.34,0.03455958]
[1739251081884,14.5256312,204.43,204.34,0.03455958]
[1739251083284,191.0,204.46,204.34,0.03455958]
[1739251083787,191.0,204.46,204.38,4.8918]
[1739251084188,191.0,204.46,204.29,14.5256312]
[1739251084390,191.0,204.46,204.42,4.8911]
[1739251084579,2.8984,204.48,204.33,14.5256312]
[1739251084779,2.8984,204.48,204.34,2.934]
[1739251084981,2.8984,204.48,204.42,0.03548863]
[1739251085287,272.04865604,204.54,204.42,0.03548863]
[1739251085488,3.1077,204.53,204.42,0.03548863]
[1739251086488,4.889,204.51,204.42,4.92648863]
[1739251086786,17.6333312,204.53,204.42,0.03548863]
[1739251087184,4.8892,204.51,204.42,0.03548863]
[1739251087384,17.6333312,204.53,204.42,0.03548863]
[1739251087783,4.8894,204.49,204.42,0.03548863]
[1739251087985,14.5256312,204.49,204.42,0.03548863]
[1739251088593,4.8905,204.45,204.42,0.03548863]
[1739251089095,14.5256312,204.49,204.42,0.03548863]
[1739251089286,14.5256312,204.49,204.36,4.8924]
[1739251089287,14.5256312,204.45,204.27,14.5256312]
[1739251089488,14.5256312,204.45,204.28,4.659]